Cogmind - Beta 15 @@@ ROGUE MODE // 2025.07.26 @ 09:52:22 Player: phil_doe Result: Destroyed by Dirty Bomb Trap Performance ------------- Evolutions (1) 500 Regions Visited (3) 600 Robots Destroyed (15) 75 Value Destroyed (422) 422 Prototype IDs (0) 0 Alien Tech Used (0) 0 Bonus (0) 0 TOTAL SCORE: 1597 Bonus ------- None Cogmind --------- Core Integrity 0/400 Matter 156/300 Energy 49/100 System Corruption 9% Temperature Cool (0) Movement Walking (120) Location -9/Mines Parts ------- > --- POWER (1) -------- (None) > --- PROPULSION (3) --- Aluminum Leg Aluminum Leg Aluminum Leg > --- UTILITY (3) ------ Medium Storage Unit > --- WEAPON (2) ------- (None) > --- INVENTORY (10) --- Wheel Small Storage Unit Reactive Plating Peak State ------------ > --- POWER ------------ Ion Engine > --- PROPULSION ------- Aluminum Leg Aluminum Leg Aluminum Leg > --- UTILITY ---------- Medium Storage Unit Recoil Stabilizer Medium Armor Plating > --- WEAPON ----------- Light Assault Rifle Rocket Launcher > --- INVENTORY -------- Wheel Compact Wheel Compact Wheel Small Storage Unit Reactive Plating Assault Rifle Assault Rifle Mining Laser [Rating: 14] Favorites ----------- Power Light Ion Engine Engine Light Ion Engine Propulsion Aluminum Leg Leg Aluminum Leg Wheel Compact Wheel Utility Weapon Shielding Device Recoil Stabilizer Storage Small Storage Unit Protection Weapon Shielding Weapon Assault Rifle Ballistic Gun Assault Rifle Launcher Rocket Launcher Special Weapon Mining Laser Build | -11 -10 -9 -9 ------- Run | Yrd Mat Mat Min Slots Evolved 2 | . . 2 . Power . | . . . . Propulsion 1 | . . 1 . Utility 1 | . . 1 . Weapon . | . . . . Parts Attached 25 | 6 6 9 4 Power 2 | 1 . 1 . Engine 2 | 1 . 1 . Core . | . . . . Reactor . | . . . . Propulsion 9 | 2 1 3 3 Treads . | . . . . Leg 3 | . . 3 . Wheel 6 | 2 1 . 3 Hover . | . . . . Flight . | . . . . Utility 7 | 1 2 4 . Device 1 | . . 1 . Storage 2 | 1 . 1 . Processor . | . . . . Hackware . | . . . . Protection 4 | . 2 2 . Artifact . | . . . . Weapon 7 | 2 3 1 1 Energy Gun . | . . . . Energy Cannon . | . . . . Ballistic Gun 4 | 2 2 . . Ballistic Cannon . | . . . . Launcher 2 | . 1 1 . Special Weapon 1 | . . . 1 Impact Weapon . | . . . . Slashing Weapon . | . . . . Piercing Weapon . | . . . . Special Melee Weapon . | . . . . Unidentified Prototypes . | . . . . Parts Lost 12 | . 1 1 10 Power 2 | . . 1 1 Propulsion 3 | . 1 . 2 Utility 2 | . . . 2 Weapon 5 | . . . 5 Highest Loss Streak 10 | . 1 1 10 To Critical Strikes . | . . . . Average Backups 6 | 1 5 7 6 Power . | . 1 . . Propulsion 2 | . 2 2 3 Utility 1 | . . 1 2 Weapon 2 | . 1 2 1 Tool/Special . | . . . . Unused Backups 1 | . . 1 . Power . | . . . . Propulsion . | . . . . Utility . | . . . . Weapon 1 | . . 1 . Tool/Special . | . . . . Average Slot Usage (%) 88 | . 90 93 52 Engine 11 | . 14 11 4 Leg 16 | . . 27 2 Wheel 10 | . 26 . 17 Device 6 | . . 10 3 Storage 11 | . 14 11 11 Protection 9 | . 8 11 3 Ballistic Gun 20 | . 25 19 4 Launcher 2 | . 1 2 4 Peak Build Rating 14 | 6 7 14 14 Average Rating 9 | 4 6 11 6 On Entrance 6 | . 6 7 14 Naked Turns . | . . . . Heaviest Build 28 | 12 13 28 28 Greatest Support 42 | 26 26 30 42 Greatest Overweight (x) . | . . . . Average Overweight (x) . | . . . . Largest Inventory Capacity 10 | 8 8 10 10 Average Capacity 8 | 7 8 8 10 Most Carried 8 | 4 7 8 8 Average Carried 6 | 1 5 7 6 Final Capacity 10 | 8 8 10 10 Final Carried 8 | 4 7 8 3 Class Distribution -------------------- 100% | Mutant Dominant Class ---------------- Mutant | -10/Materials Mutant | -9/Materials Mutant | -9/Mines Resources | -11 -10 -9 -9 ----------- Run | Yrd Mat Mat Min Matter Collected 518 | 193 117 208 . Remotely . | . . . . Salvage Created 506 | . 178 264 64 Parts 34 | . 19 15 . Haulers Intercepted 1 | . . 1 . Recyclers Shooed . | . . . . Parts Field Recycled . | . . . . Retrieved Matter . | . . . . Parts Self-Destructed . | . . . . Prevented . | . . . . Kills | -11 -10 -9 -9 ------- Run | Yrd Mat Mat Min Combat Hostiles Destroyed 26 | . 7 6 13 Guns 8 | . 4 3 1 AOE 18 | . 3 3 12 Classes Destroyed 6 | . 3 2 1 Builder 1 | . 1 . . Hauler 1 | . . 1 . Swarmer 3 | . 3 . . Grunt 8 | . 4 4 . Sentry 2 | . . 2 . Assembled 13 | . . . 13 Best Kill Streak 13 | . 6 3 13 Combat Bots Only 13 | . 5 2 13 Max Kills in Single Turn 4 | . 3 2 4 Gunslinging . | . . . . Exploded 4 | . 2 1 4 Melee . | . . . . Uniques/NPCs Destroyed . | . . . . Combat | -11 -10 -9 -9 -------- Run | Yrd Mat Mat Min Hostile Shots Fired 136 | . 42 31 63 Missed 43 | . 13 11 19 Hits 93 | . 29 20 44 Melee 19 | . . . 19 Projectile 74 | . 29 20 25 Critical Strikes 2 | . . 1 1 Actively Blocked 1 | . . 1 . Damage Taken 1516 | . 290 290 936 Core 484 | . 60 47 377 Absorbed by Shields . | . . . . Redirected to Shielding 55 | . 20 35 . Core Remaining (%) 88 | 100 76 . . Volleys Fired 50 | . 19 21 10 Largest 2 | . 2 2 2 Hottest 100 | . 50 53 100 Shots Fired 98 | . 37 42 19 Gun 80 | . 31 39 10 Cannon . | . . . . Launcher 17 | . 6 3 8 Special 1 | . . . 1 Kinetic 80 | . 31 39 10 Thermal 1 | . . . 1 Explosive 17 | . 6 3 8 Electromagnetic . | . . . . Robot Hit Streak 7 | . 4 7 4 Robot Miss Streak 6 | . 6 3 2 Penetration Max . | . . . . Secondary Targets . | . . . . Shots Hit Robots 51 | . 16 25 10 Core Hits 60 | . 15 14 31 Critical Kills . | . . . . Critical Parts Destroyed . | . . . . Critical Strikes . | . . . . Melee Attacks . | . . . . Impact . | . . . . Slashing . | . . . . Piercing . | . . . . Sneak Attacks . | . . . . Combat Hostiles . | . . . . Follow-up Attacks . | . . . . Damage Inflicted 2181 | . 545 430 1206 Guns 443 | . 169 234 40 Cannons . | . . . . Explosions 1724 | . 376 188 1160 Melee . | . . . . Ramming 14 | . . 8 6 Kinetic 443 | . 169 234 40 Thermal . | . . . . Explosive 1724 | . 376 188 1160 Electromagnetic . | . . . . Impact . | . . . . Slashing . | . . . . Piercing . | . . . . Highest Corruption 9 | . . . 9 Average Corruption 9 | . . . 9 Corruption Purged . | . . . . Corruption Blocked . | . . . . Effects 2 | . . . 2 Message Errors 1 | . . . 1 Matter Fused 1 | . . . 1 Overload Shots . | . . . . Overflow Damage 35 | . . . 35 Projectiles . | . . . . Explosions 35 | . . . 35 Melee . | . . . . Knockbacks . | . . . . Impact . | . . . . Kinetic . | . . . . Secondary . | . . . . Self-Inflicted Damage 27 | . . 24 3 Shots 1 | . . 1 . Rammed 1 | . . . 1 Targets Rammed 3 | . . 2 1 Kicked 2 | . . 2 . Crushed . | . . . . Highest Temperature 32 | . 5 12 32 Average Temperature 7 | . 2 5 11 Received Heat Transfer 206 | . 90 96 20 Siege Activations . | . . . . Martial Activations . | . . . . Shielding Activations . | . . . . Robots Disrupted . | . . . . Combat Hostiles . | . . . . Robots Corrupted . | . . . . Combat Hostiles . | . . . . Parts Fried . | . . . . Impact Corruptions . | . . . . Robots Melted . | . . . . Combat Hostiles . | . . . . Parts Melted . | . . . . Heat Transferred . | . . . . Parts Sabotaged . | . . . . Parts Stolen . | . . . . Parts Stripped . | . . . . Power Chain Reactions . | . . . . Alert | -11 -10 -9 -9 ------- Run | Yrd Mat Mat Min Maximum Alert Level . | . . . . Low Security (%) 100 | 100 100 100 100 Level 1 . | . . . . Level 2 . | . . . . Level 3 . | . . . . Level 4 . | . . . . Level 5 . | . . . . High Security . | . . . . Max Security . | . . . . Peak Influence 143 | . 143 142 69 Initial 52 | . . 34 52 Average 40 | . 72 28 23 Influence Increases 538 | . 213 281 44 Destroy 0b10 Robot/C 260 | . 140 120 . Destroy 0b10 Robot/NC 10 | . 5 5 . Destroy Leader 72 | . 30 42 . Successful Hack 13 | . . 13 . Disable Machine 15 | . 15 . . Destroy Structure 93 | . 23 26 44 Lose Combat Pursuer 75 | . . 75 . Influence Decreases 538 | . 130 230 178 Entered New Map 131 | . . 49 82 Time Decay 301 | . 120 171 10 Lost Part 106 | . 10 10 86 Squads Dispatched 4 | . 1 3 . Investigation 2 | . . 2 . Extermination . | . . . . Reinforcement 2 | . 1 1 . Assault . | . . . . Garrison . | . . . . Intercept . | . . . . Searches Triggered . | . . . . Construction Impeded . | . . . . Haulers Reinforced . | . . . . Active Scanning Responses . | . . . . Cargo Convoy Interrupts . | . . . . Stealth | -11 -10 -9 -9 --------- Run | Yrd Mat Mat Min Distress Signals 6 | . 1 5 . Communications Jammed . | . . . . Distress Signals . | . . . . Times Spotted 46 | . 13 15 18 Peak Tracking Total 15 | . 7 5 15 Tactical Retreats 5 | . . 4 1 Traps | -11 -10 -9 -9 ------- Run | Yrd Mat Mat Min Traps Triggered 2 | . 2 . . Indirectly . | . . . . Trap Hack Attempts . | . . . . Triggered . | . . . . Disarmed . | . . . . Reprogrammed . | . . . . Reused . | . . . . Traps Extracted . | . . . . Installed . | . . . . Triggered . | . . . . Machines | -11 -10 -9 -9 ---------- Run | Yrd Mat Mat Min Machines Disabled 2 | . 2 . . Max in Single Turn 1 | . 1 . . Machines Repaired . | . . . . Machines Dismantled . | . . . . Machines Sabotaged . | . . . . Overloaded Fab Kills . | . . . . Hacking | -11 -10 -9 -9 --------- Run | Yrd Mat Mat Min Machines Accessed 9 | . 3 6 . Terminals 8 | . 3 5 . Fabricators . | . . . . Repair Stations . | . . . . Recycling Units 1 | . . 1 . Scanalyzers . | . . . . Garrison Access . | . . . . Total Hacks 20 | . 3 17 . Successful 12 | . 2 10 . Failed 8 | . 1 7 . Catastrophic 1 | . . 1 . Database Lockouts . | . . . . Manual 1 | . . 1 . Terminals 14 | . 3 11 . Fabricators . | . . . . Repair Stations . | . . . . Recycling Units 6 | . . 6 . Scanalyzers . | . . . . Garrison Access . | . . . . Terminal Hacks 7 | . 2 5 . Record 3 | . 1 2 . Robot Analysis 1 | . . 1 . Alert Level 2 | . 1 1 . Dispatch Records 1 | . . 1 . Fabricator Hacks . | . . . . Repair Station Hacks . | . . . . Recycling Unit Hacks 5 | . . 5 . Recycle Component 3 | . . 3 . Process 1 | . . 1 . Retrieve Matter 1 | . . 1 . Scanalyzer . | . . . . Garrison Access Hacks . | . . . . Unauthorized Hacks . | . . . . Terminals . | . . . . Fabricators . | . . . . Repair Stations . | . . . . Recycling Units . | . . . . Scanalyzers . | . . . . Garrison Access . | . . . . Data Cores Recovered . | . . . . Used . | . . . . Hacking Detections 5 | . 1 4 . Full Trace Events 2 | . . 2 . Feedback Events . | . . . . Feedback Blocked . | . . . . Robot Schematics Acquired . | . . . . Robots Built . | . . . . Authchips . | . . . . Time . | . . . . Total Robot Build Rating . | . . . . Part Schematics Acquired . | . . . . Parts Built . | . . . . Authchips . | . . . . Time . | . . . . Total Part Build Rating . | . . . . Parts Repaired . | . . . . Time . | . . . . Parts Recycled 3 | . . 3 . Recycled Matter 204 | . . 204 . Retrieved Matter 243 | . . 243 . Retrieved Components . | . . . . Parts Scanalyzed . | . . . . Part Schematics Acquired . | . . . . Parts Damaged . | . . . . Bothacking | -11 -10 -9 -9 ------------ Run | Yrd Mat Mat Min Used RIF Installer . | . . . . Robots Hacked . | . . . . Non-combat . | . . . . Combat . | . . . . Robot Hacks Applied . | . . . . Relay Couplers Released . | . . . . Fabnet Peak Effective % . | . . . . Robots Rewired . | . . . . Allies Hacked . | . . . . Hacks Repelled . | . . . . Allies | -11 -10 -9 -9 -------- Run | Yrd Mat Mat Min Total Allies . | . . . . Largest Group . | . . . . Highest-Rated Group . | . . . . Highest-Rated Ally . | . . . . Total Orders . | . . . . Ally Attacks . | . . . . Total Damage . | . . . . Kills . | . . . . Allies Corrupted . | . . . . Allies Melted . | . . . . Intel | -11 -10 -9 -9 ------- Run | Yrd Mat Mat Min Active Infowar (turns) . | . . . . Robot Analysis Total 1 | . . 1 . Derelict Logs Recovered . | . . . . Drone Launches . | . . . . Drone Recoveries . | . . . . Exploration | -11 -10 -9 -9 ------------- Run | Yrd Mat Mat Min Turns Passed 947 | 45 290 525 87 Spaces Moved 682 | 37 228 362 55 Core 1 | 1 . . . Treads . | . . . . Legs 362 | . . 362 . Wheels 319 | 36 228 . 55 Hover . | . . . . Flight . | . . . . Fastest Speed 50 | 50 90 120 80 Average Speed 105 | 88 90 120 81 Slowest Speed 120 | 90 100 120 93 Overloaded Moves . | . . . . Propulsion Burnouts . | . . . . Robots Hopped . | . . . . Potential Cave-ins . | . . . . Cave-ins Triggered . | . . . . Exploration Rate (%) 29 | 5 47 39 25 Regions Visited 3 Branch Regions 1 Pre-discovered Areas . | . . . . Known Exits Taken . | . . . . Unknown Exits Taken 3 | 1 1 1 . Scrap Searched . | . . . . Spaces Dug 1 | . . . 1 Terrain Destroyed 127 | . 24 23 80 Melee . | . . . . Projectile 1 | . . . 1 AOE 126 | . 24 23 79 Terrain Rammed . | . . . . Walls Destroyed . | . . . . Machines Disabled . | . . . . Actions | -11 -10 -9 -9 --------- Run | Yrd Mat Mat Min Total 801 | 46 268 412 75 Wait 16 | . 5 11 . Move 679 | 36 227 361 55 Hop . | . . . . Pick Up 12 | 4 3 5 . Fast Attach 13 | 6 4 3 . Attach 8 | . 2 1 5 Detach 1 | . . 1 . Swap 17 | . 8 5 4 Drop 2 | . . 2 . Fire 50 | . 19 21 10 Melee . | . . . . Ram 1 | . . . 1 Kick 2 | . . 2 . Crush . | . . . . Escape Stasis . | . . . . Rewire . | . . . . Trap . | . . . . Miscellaneous . | . . . . Route ------- -11/Scrapyard -10/Materials (discovered 2 exits: *Mat / [*Min]) -9/Materials -9/Mines History --------- Turn | Location | Event 17 | -11/Scrapyard | Discovered new exit (range 15) 46 | -11/Scrapyard | Entered Materials 173 | -10/Materials | Discovered new exit (range 9) 310 | -10/Materials | Build established: Mutant 313 | -10/Materials | Discovered new exit (range 9) 336 | -10/Materials | Entered another Materials area 336 | -9/Materials | Evolved 2 slots: Propulsion x1, Utility x1 805 | -9/Materials | Discovered new exit (range 16) 861 | -9/Materials | Entered Mines 862 | -9/Mines | Assembled infested the area 867 | -9/Mines | Assisted by a Guerilla fighting off Assembled 901 | -9/Mines | Core integrity fell below 50% 907 | -9/Mines | Core integrity fell below 20% 915 | -9/Mines | Destroyed 13 combat bots 918 | -9/Mines | Found a Scrap Suit stashed away for nefarious purposes 937 | -9/Mines | Lost 10 parts (1p2n2u5w) 948 | -9/Mines | Destroyed by Dirty Bomb Trap Last Messages --------------- as-55682 destroyed. Mining Laser destroyed. System corrupted: Matter fused (-5). The unstable cave ceiling collapses. A message is left with an item here: "H4-X0R! I managed to smuggle one out! Take this to the hideout, the fools near Old Recycling think they can use this tech to beat 0b10 one day, and now we just have to find a way to safely deliver this to MAIN.C to get on their good side and convince them to let us into the system." GE=3 G4,#4V0RS7QNM%QRN32JX T-07 Excavator is excavating. A derelict is hurriedly installing traps. T-07 Excavator is excavating. DN-Q8B(g): "Hehe, this'll put a wrench in their mining defense operations..." DN-Q8B(g) slips into the shadows. T-07 Excavator is excavating. as-43024 triggered Dirty Bomb Trap. An explosion rips through the floor. as-43024 destroyed. Map ----- +----------------------------------------------------+ | ????????????????????????????# ### #?????????? | | ????????????????????????????# ### #?????????? | | ???????????????????????????## ## #?????????? | | ??????????????????????????## ! #$ #?????????? | | ?????????????????????????## ####??????? | | ??????????????? ??????# ##?????? | | ???????????????# #### #?????? | | ???????????????# #?????? | | ???????????????# ### #?????? | | ??????????????# ######## ##?## #?????? | | ???????????????????????????## #???# #?????? | | ????????????????????????????# #???# #????? | | ???????????????????????###### #???# #????? | | ??????????????????????## # ###?## ##????? | | ??????????????????????# a ##??####?????? | | ??????????????????????# #???????????? | | ??????????????????????## #???????????? | | ???????????????????????## ##??????????? | | ????????????????????????## ##?????????? | | ?????????????????????????# #?????????? | | ????????????????????######a ## #????????? | | ????????????????????# ;## #????????? | | ????????????????????# ^ ;; ;#? #????????? | | ???????????????" # ## #????????? | | ?????????????""" # # # ##????????? | | ??????????? ^# @ ; ####?????????? | | ?????????# ##### # ## #????????????? | | ?????????????????##?##### ###??#????????????? | | ????????????????????????# #?????????????????? | | ????????????????????????# #?????????????????? | | ????????????????????????# t ?????????????????? | | ????????????????????????# ###????????????????? | | ????????????????????????###??????????????????? | | ?????????????????????????????????????????????? | | ?????????????????????????????????????????????? | | ?????????????????????????????????????????????? | | ?????????????????????????????????????????????? | | ?????????????????????????????????????????????? | | ?????????????????????????????????????????????? | | ?????????????????????????????????????????????? | | | | | | | | | | | | | | | | | | | | | +----------------------------------------------------+ Best States ------------- Heat Dissipation 28 Energy Generation 10 Energy Capacity 250 Matter Stores 300 Matter Capacity 300 Sight Range 16 Terrain Scan Density 10 Armor Coverage 225 Weapon Shielding 33 Evasion (%) 55 Recoil Reduction 4 Item Schematics ----------------- None Robot Schematics ------------------ None Fabricated ------------ Nothing Repaired ---------- Nothing Alien Tech Used ----------------- None Achievements -------------- One Hack Too Far Challenges ------------ None Game ------ Seed IonicCoordinationNeutralizer Manual? 0 Play Time 00:29:21 Cumulative 3.2 hours Start 2025.07.26 @ 09:19:42 End 2025.07.26 @ 09:52:22 Sessions 1 Manual Loads 0 Difficulty Rogue Special Mode None Game No. 5 Rogue 5 Adventurer 0 Explorer 0 Win Type - Total 0 Types 0/0/0/0/0/0/0/0/0/0 Lore% 0 Gallery% 4 Achievement% 5 Wizard Run 0 Options --------- Layout 0 ASCII 0 Keyboard 1 Movement Arrows Keybinds 0 Fullscreen 2 Font 24/Smallcaps Map View 76x50 Zoom Use 0% Tactical HUD 0 Map Filters NONE Filters NONE Steam 1 RUN: b61d2a31-3718-4225-b06d-2276e9e8b282